fUSD/lending_fUSD_20240125
["ID","MTS","AMOUNT","RATE_DAILY","PERIOD"]
[312684621,1706145105956,-200.0,0.00051,29]
[312684622,1706145105973,-300.0,0.00051,34]
[312684623,1706145105990,-210.0,0.00051,120]
[312684624,1706145106007,-633.91,0.00051,120]
[312684625,1706145106023,-150.0,0.00051,29]
[312684626,1706145106040,-176.58520058,0.00051056,60]
[312684627,1706145106054,-1463.20744382,0.00051063,60]
[312684628,1706145106071,-647.69,0.00051095,120]
[312684629,1706145106086,-150.37716717,0.00051097,60]
[312684630,1706145106101,-1489.53765312,0.00051104,14]
[312684631,1706145106116,-176.58520058,0.0005111,60]
[312684632,1706145106132,-153.21386404,0.00051146,60]
[312684633,1706145106147,-432.40353136,0.00051169,60]
[312684634,1706145106163,-497.24,0.00051226,2]
[312684635,1706145106177,-500.0,0.00051232,31]
[312684636,1706145106192,-500.0,0.00051232,31]
[312684637,1706145106206,-500.0,0.00051232,31]
[312684638,1706145106221,-342.82900521,0.00051232,31]
[312684639,1706145106235,-500.0,0.00051232,31]
[312684640,1706145106249,-500.0,0.00051232,31]
[312684641,1706145106264,-500.0,0.00051232,31]
[312684642,1706145106279,-500.0,0.00051232,31]
[312684643,1706145106293,-500.0,0.00051232,31]
[312684644,1706145106308,-500.0,0.00051232,31]
[312684645,1706145106322,-500.0,0.00051232,31]
[312684646,1706145106336,-500.0,0.00051232,31]
[312684647,1706145106352,-250.0,0.00051232,31]
[312684648,1706145106368,-571.81,0.00051232,31]
[312684649,1706145106382,-500.0,0.00051232,31]
[312684650,1706145106396,-500.0,0.00051232,31]
[312684651,1706145106411,-500.0,0.00051232,31]
[312684652,1706145106425,-1000.0,0.00051232,7]
[312684653,1706145106438,-500.0,0.00051232,31]
[312684654,1706145106452,-569.3,0.00051232,31]
[312684655,1706145106466,-500.0,0.00051232,31]
[312684656,1706145106480,-500.0,0.00051232,31]
[312684657,1706145106494,-500.0,0.00051232,31]
[312684658,1706145106508,-500.0,0.00051232,31]
[312684659,1706145106522,-500.0,0.00051232,31]
[312684660,1706145106538,-500.0,0.00051232,31]
[312684661,1706145106552,-500.0,0.00051232,31]
[312684662,1706145106566,-607.8,0.00051232,31]
[312684663,1706145106580,-500.0,0.00051232,31]
[312684664,1706145106594,-500.0,0.00051232,31]
[312684665,1706145106609,-500.0,0.00051232,31]
[312684666,1706145106624,-510.64,0.00051232,31]
[312684667,1706145106637,-500.0,0.00051232,31]
[312684668,1706145106651,-500.0,0.00051232,31]
[312684669,1706145106665,-500.0,0.00051232,31]
[312684670,1706145106679,-500.0,0.00051232,31]
[312684671,1706145106694,-563.82,0.00051232,31]
[312684672,1706145106708,-500.0,0.00051232,31]
[312684673,1706145106722,-500.0,0.00051232,31]
[312684674,1706145106737,-510.96,0.00051232,31]
[312684675,1706145106751,-500.0,0.00051232,31]
[312684676,1706145106765,-500.0,0.00051232,31]
[312684677,1706145106779,-545.8,0.00051232,31]
[312684678,1706145106794,-500.0,0.00051232,31]
[312684679,1706145106808,-547.01,0.00051232,31]
[312684680,1706145106821,-500.0,0.00051232,31]
[312684681,1706145106836,-500.0,0.00051232,31]
[312684682,1706145106850,-500.000001,0.00051232,31]
[312684683,1706145106863,-500.0,0.00051232,31]
[312684684,1706145106877,-500.0,0.00051232,31]
[312684685,1706145106891,-500.0,0.00051232,31]
[312684686,1706145106905,-500.0,0.00051232,31]
[312684687,1706145106919,-500.0,0.00051232,31]
[312684688,1706145106933,-500.0,0.00051232,31]
[312684689,1706145106946,-500.0,0.00051232,31]
[312684690,1706145106960,-665.93,0.00051232,31]
[312684691,1706145106975,-500.0,0.00051232,31]
[312684692,1706145106988,-500.0,0.00051232,31]
[312684693,1706145107001,-1000.0,0.00051232,7]
[312684694,1706145107015,-500.0,0.00051232,31]
[312684695,1706145107029,-500.0,0.00051232,31]
[312684696,1706145107046,-500.0,0.00051232,31]
[312684697,1706145107060,-500.0,0.00051232,31]
[312684698,1706145107074,-500.0,0.00051232,31]
[312684699,1706145107088,-500.0,0.00051232,31]
[312684700,1706145107102,-500.0,0.00051232,31]
[312684701,1706145107116,-4118.15,0.00051232,15]
[312684702,1706145107131,-500.0,0.00051232,31]
[312684703,1706145107145,-937.73,0.00051232,2]
[312684704,1706145107159,-523.13,0.00051232,31]
[312684705,1706145107173,-1968.51,0.00051232,31]
[312684706,1706145107187,-500.0,0.00051232,31]
[312684707,1706145107201,-500.0,0.00051232,31]
[312684708,1706145107215,-539.3,0.00051232,31]
[312684709,1706145107229,-500.0,0.00051232,31]
[312684710,1706145107243,-500.0,0.00051232,31]
[312684711,1706145107257,-500.0,0.00051232,31]
[312684712,1706145107272,-4141.1,0.00051232,31]
[312684713,1706145107285,-500.0,0.00051232,31]
[312684714,1706145107300,-500.0,0.00051232,31]
[312684715,1706145107314,-500.0,0.00051232,31]
[312684716,1706145107328,-500.0,0.00051232,31]
[312684717,1706145107342,-500.0,0.00051232,31]
[312684718,1706145107357,-500.0,0.00051232,31]
[312684719,1706145107371,-500.0,0.00051232,31]
[312684720,1706145107386,-500.0,0.00051232,31]
[312684721,1706145107400,-500.0,0.00051232,31]
[312684722,1706145107641,-500.0,0.00051232,2]
[312684723,1706145107651,-792.61,0.00051232,31]
[312684724,1706145107660,-500.0,0.00051232,31]
[312684725,1706145107669,-500.0,0.00051232,31]
[312684726,1706145107678,-500.0,0.00051232,31]
[312684727,1706145107687,-500.0,0.00051232,31]
[312684728,1706145107697,-500.0,0.00051232,31]
[312684729,1706145107706,-500.0,0.00051232,2]
[312684730,1706145107716,-500.0,0.00051232,31]
[312684731,1706145107725,-702.69,0.00051232,31]
[312684732,1706145107734,-500.0,0.00051232,31]
[312684733,1706145107743,-500.0,0.00051232,31]
[312684734,1706145107753,-500.0,0.00051232,31]
[312684735,1706145107762,-500.0,0.00051232,31]
[312684736,1706145107772,-500.0,0.00051232,31]
[312684737,1706145107781,-668.66,0.00051232,31]
[312684738,1706145107791,-500.0,0.00051232,31]
[312684739,1706145107800,-619.19,0.00051232,31]
[312684740,1706145107809,-500.0,0.00051232,31]
[312684741,1706145107819,-953.39,0.00051232,31]
[312684742,1706145107829,-500.0,0.00051232,31]
[312684743,1706145107840,-500.0,0.00051232,31]
[312684744,1706145107849,-500.0,0.00051232,31]
[312684745,1706145107858,-500.0,0.00051232,31]
[312684746,1706145107868,-500.0,0.00051232,31]
[312684747,1706145107878,-500.0,0.00051232,31]
[312684748,1706145107888,-500.0,0.00051232,31]
[312684749,1706145107897,-500.0,0.00051232,31]
[312684750,1706145107906,-500.0,0.00051232,31]
[312684751,1706145107916,-500.0,0.00051232,31]
[312684752,1706145107925,-524.2,0.00051232,31]
[312684753,1706145107935,-500.0,0.00051232,31]
[312684754,1706145107944,-500.0,0.00051232,31]
[312684755,1706145107954,-616.87980876,0.00051232,31]
[312684756,1706145107963,-500.0,0.00051232,31]
[312684757,1706145107972,-781.79,0.00051232,31]
[312684758,1706145107982,-500.0,0.00051232,31]
[312684759,1706145107991,-500.0,0.00051232,31]
[312684760,1706145108001,-718.1,0.00051232,31]
[312684761,1706145108010,-500.0,0.00051232,31]
[312684762,1706145108020,-326.6758344,0.00051232,31]
[312684763,1706145108030,-558.82,0.00051232,31]
[312684764,1706145108039,-500.0,0.00051232,31]
[312684765,1706145108048,-500.0,0.00051232,31]
[312684766,1706145108057,-500.0,0.00051232,31]
[312684767,1706145108067,-529.49751487,0.00051232,31]
[312684768,1706145108076,-500.0,0.00051232,31]
[312684769,1706145108088,-500.0,0.00051232,31]
[312684770,1706145108098,-500.0,0.00051232,31]
[312684771,1706145108107,-500.0,0.00051232,31]
[312684772,1706145108117,-500.0,0.00051232,31]
[312684773,1706145108127,-500.0,0.00051232,31]
[312684774,1706145108137,-500.0,0.00051232,31]
[312684775,1706145108147,-719.02,0.00051232,31]
[312684776,1706145108156,-500.0,0.00051232,31]
[312684777,1706145108166,-500.0,0.00051232,31]
[312684778,1706145108176,-500.0,0.00051232,31]
[312684779,1706145108185,-530.57,0.00051232,31]
[312684780,1706145108195,-590.77,0.00051232,31]
[312684781,1706145108204,-500.0,0.00051232,31]
[312684782,1706145108214,-500.0,0.00051232,31]
[312684783,1706145108223,-500.0,0.00051232,31]
[312684784,1706145108233,-500.0,0.00051232,31]
[312684785,1706145108242,-500.0,0.00051232,31]
[312684786,1706145108251,-1141.79,0.00051232,31]
[312684787,1706145108261,-500.0,0.00051232,31]
[312684788,1706145108270,-500.0,0.00051232,31]
[312684789,1706145108279,-626.76,0.00051232,31]
[312684790,1706145108289,-500.0,0.00051232,31]
[312684791,1706145108298,-500.0,0.00051232,31]
[312684792,1706145108307,-500.0,0.00051232,31]
[312684793,1706145108317,-500.0,0.00051232,31]
[312684794,1706145108326,-500.0,0.00051232,31]
[312684795,1706145108338,-500.0,0.00051232,31]
[312684796,1706145108348,-500.0,0.00051232,31]
[312684797,1706145108357,-500.0,0.00051232,31]
[312684798,1706145108367,-285.93852922,0.00051232,31]
[312684799,1706145108376,-500.0,0.00051232,31]
[312684800,1706145108386,-529.72,0.00051232,31]
[312684801,1706145108395,-502.97,0.00051232,31]
[312684802,1706145108404,-500.0,0.00051232,31]
[312684803,1706145108414,-500.0,0.00051232,31]
[312684804,1706145108423,-204.05457712,0.00051232,31]
[312684805,1706145108432,-195.8383621,0.00051232,31]
[312684806,1706145108441,-992.14,0.00051232,120]
[312684807,1706145108451,-500.0,0.00051232,31]
[312684808,1706145108460,-500.0,0.00051232,31]
[312684809,1706145108470,-500.0,0.00051232,31]
[312684810,1706145108479,-500.0,0.00051232,31]
[312684811,1706145108489,-500.0,0.00051232,31]
[312684812,1706145108498,-500.0,0.00051232,31]
[312684813,1706145108507,-500.0,0.00051232,31]
[312684814,1706145108517,-500.0,0.00051232,31]
[312684815,1706145108526,-500.0,0.00051232,31]
[312684816,1706145108535,-500.0,0.00051232,31]
[312684817,1706145108550,-446.08941046,0.00051232,31]
[312684818,1706145108560,-500.0,0.00051232,31]
[312684819,1706145108570,-500.0,0.00051232,31]
[312684820,1706145108580,-609.274206,0.00051232,31]
[312684821,1706145108591,-500.0,0.00051232,31]
[312684822,1706145108600,-500.0,0.00051232,31]
[312684823,1706145108609,-697.72,0.00051232,2]
[312684824,1706145108620,-500.0,0.00051232,31]
[312684825,1706145108629,-500.0,0.00051232,31]
[312684826,1706145108638,-244.91376974,0.00051232,31]
[312684827,1706145108647,-796.46,0.00051232,31]
[312684828,1706145108656,-500.0,0.00051232,31]
[312684829,1706145108665,-500.0,0.00051232,31]
[312684830,1706145108674,-500.0,0.00051232,31]
[312684831,1706145108684,-500.0,0.00051232,31]
[312684832,1706145108693,-500.0,0.00051232,31]
[312684833,1706145108703,-502.99,0.00051232,31]
[312684834,1706145108712,-528.58295501,0.00051232,31]
[312684835,1706145108721,-500.0,0.00051232,31]
[312684836,1706145108730,-500.0,0.00051232,31]
[312684837,1706145108740,-1084.63,0.00051232,31]
[312684838,1706145108748,-500.0,0.00051232,31]
[312684839,1706145108758,-500.0,0.00051232,31]
[312684840,1706145108767,-500.0,0.00051232,31]
[312684841,1706145108776,-500.0,0.00051232,31]
[312684842,1706145108785,-477.41345298,0.00051232,31]
[312684843,1706145108794,-500.0,0.00051232,31]
[312684844,1706145108804,-1233.91,0.00051232,7]
[312684845,1706145108813,-500.0,0.00051232,31]
[312684846,1706145108822,-500.0,0.00051232,31]
[312684847,1706145108831,-500.0,0.00051232,31]
[312684848,1706145108841,-500.0,0.00051232,31]
[312684849,1706145108851,-500.0,0.00051232,31]
[312684850,1706145108860,-500.0,0.00051232,31]
[312684851,1706145108869,-500.0,0.00051232,14]
[312684852,1706145108879,-500.0,0.00051232,31]
[312684853,1706145108889,-500.0,0.00051232,31]
[312684854,1706145108899,-222.06529214,0.00051232,31]
[312684855,1706145108908,-500.0,0.00051232,31]
[312684856,1706145108917,-500.0,0.00051232,31]
[312684857,1706145108927,-500.0,0.00051232,31]
[312684858,1706145108936,-500.0,0.00051232,31]
[312684859,1706145108945,-500.0,0.00051232,31]
[312684860,1706145108954,-500.0,0.00051232,31]
[312684861,1706145108963,-669.25,0.00051232,20]
[312684862,1706145108973,-500.0,0.00051232,31]
[312684863,1706145108983,-469.65640682,0.00051232,31]
[312684864,1706145108996,-500.0,0.00051232,31]
[312684865,1706145109005,-500.0,0.00051232,31]
[312684866,1706145109014,-500.0,0.00051232,31]
[312684867,1706145109025,-500.0,0.00051232,31]
[312684868,1706145109035,-1309.13,0.00051232,7]
[312684869,1706145109045,-500.0,0.00051232,31]
[312684870,1706145109054,-500.0,0.00051232,31]
[312684871,1706145109063,-500.0,0.00051232,31]
[312684872,1706145109073,-500.0,0.00051232,31]
[312684873,1706145109083,-520.3,0.00051232,31]
[312684874,1706145109093,-500.0,0.00051232,31]
[312684875,1706145109103,-500.0,0.00051232,31]
[312684876,1706145109112,-557.9982693,0.00051232,31]
[312684877,1706145109121,-500.0,0.00051232,31]
[312684878,1706145109132,-500.0,0.00051232,31]
[312684879,1706145109141,-983.18,0.00051232,31]
[312684880,1706145109150,-500.0,0.00051232,31]
[312684881,1706145109159,-500.0,0.00051232,31]
[312684882,1706145109170,-523.88,0.00051232,31]
[312684883,1706145109180,-500.0,0.00051232,31]
[312684884,1706145109191,-500.0,0.00051232,31]
[312684885,1706145109201,-500.0,0.00051232,31]
[312684886,1706145109210,-1157.14,0.00051232,31]
[312684887,1706145109220,-500.0,0.00051232,31]
[312684888,1706145109230,-500.0,0.00051232,31]
[312684889,1706145109240,-500.0,0.00051232,31]
[312684890,1706145109249,-500.0,0.00051232,31]
[312684891,1706145109258,-500.0,0.00051232,31]
[312684892,1706145109268,-500.0,0.00051232,31]
[312684893,1706145109278,-594.98,0.00051232,31]
[312684894,1706145109287,-500.0,0.00051232,31]
[312684895,1706145109297,-513.73418246,0.00051232,31]
[312684896,1706145109306,-500.0,0.00051232,31]
[312684897,1706145109316,-500.0,0.00051232,31]
[312684898,1706145109326,-500.0,0.00051232,31]
[312684899,1706145109335,-500.0,0.00051232,31]
[312684900,1706145109346,-621.48,0.00051232,31]
[312684901,1706145109355,-500.0,0.00051232,31]
[312684902,1706145109366,-659.17,0.00051232,31]
[312684903,1706145109375,-500.0,0.00051232,31]
[312684904,1706145109385,-500.0,0.00051232,31]
[312684905,1706145109395,-701.09,0.00051232,31]
[312684906,1706145109404,-500.0,0.00051232,31]
[312684907,1706145109414,-500.0,0.00051232,31]
[312684908,1706145109424,-1697.01,0.00051232,31]
[312684909,1706145109433,-500.0,0.00051232,31]
[312684910,1706145109443,-500.0,0.00051232,31]
[312684911,1706145109453,-500.0,0.00051232,31]
[312684912,1706145109462,-500.0,0.00051232,31]
[312684913,1706145109471,-500.0,0.00051232,31]
[312684914,1706145109481,-500.0,0.00051232,31]
[312684915,1706145109491,-523.57,0.00051232,31]
[312684916,1706145109501,-500.0,0.00051232,31]
[312684917,1706145109510,-728.06,0.00051232,31]
[312684918,1706145109520,-500.0,0.00051232,31]
[312684919,1706145109530,-511.53,0.00051232,31]
[312684920,1706145109540,-500.0,0.00051232,31]
[312684921,1706145109549,-500.0,0.00051232,31]
[312684922,1706145109559,-500.0,0.00051232,31]
[312684923,1706145109569,-500.0,0.00051232,31]
[312684924,1706145109579,-665.87,0.00051232,31]
[312684925,1706145109589,-698.55,0.00051232,31]
[312684926,1706145109598,-500.0,0.00051232,31]
[312684927,1706145109607,-535.75,0.00051232,31]
[312684928,1706145109619,-500.0,0.00051232,31]
[312684929,1706145109629,-500.0,0.00051232,31]
[312684930,1706145109638,-500.0,0.00051232,31]
[312684931,1706145109647,-973.03,0.00051232,2]
[312684932,1706145109656,-3653.94,0.00051232,31]
[312684933,1706145109666,-944.79,0.00051232,31]
[312684934,1706145109675,-500.0,0.00051232,31]
[312684935,1706145109684,-500.0,0.00051232,31]
[312684936,1706145109694,-500.0,0.00051232,31]
[312684937,1706145109703,-500.0,0.00051232,31]
[312684938,1706145109713,-517.29,0.00051232,31]
[312684939,1706145109722,-766.32,0.00051232,31]
[312684940,1706145109732,-578.45,0.00051232,31]
[312684941,1706145109741,-500.0,0.00051232,31]
[312684942,1706145109750,-500.0,0.00051232,31]
[312684943,1706145109759,-500.0,0.00051232,31]
[312684944,1706145109769,-500.0,0.00051232,31]
[312684945,1706145109778,-571.27,0.00051232,31]
[312684946,1706145109787,-500.0,0.00051232,31]
[312684947,1706145109796,-8715.7,0.00051232,31]
[312684948,1706145109806,-500.0,0.00051232,31]
[312684949,1706145109815,-1119.03,0.00051232,2]
[312684950,1706145109824,-500.0,0.00051232,31]
[312684951,1706145109833,-563.62,0.00051232,31]
[312684952,1706145109843,-203.82,0.00051232,31]
[312684953,1706145109852,-500.0,0.00051232,31]
[312684954,1706145109862,-551.67,0.00051232,31]
[312684955,1706145109871,-1258.54,0.00051232,31]
[312684956,1706145109880,-797.85,0.00051232,31]
[312684957,1706145109889,-500.0,0.00051232,31]
[312684958,1706145109899,-500.0,0.00051232,31]
[312684959,1706145109909,-500.0,0.00051232,31]
[312684960,1706145109919,-500.0,0.00051232,31]
[312684961,1706145109928,-500.0,0.00051232,31]
[312684962,1706145109938,-524.49,0.00051232,31]
[312684963,1706145109947,-1041.4,0.00051232,31]
[312684964,1706145109957,-500.0,0.00051232,31]
[312684965,1706145109966,-500.0,0.00051232,31]
[312684966,1706145109975,-500.0,0.00051232,31]
[312684967,1706145109984,-572.67,0.00051232,31]
[312684968,1706145109994,-1295.76,0.00051232,31]
[312684969,1706145110003,-866.53,0.00051232,31]
[312684970,1706145110013,-500.0,0.00051232,31]
[312684971,1706145110022,-717.84,0.00051232,31]
[312684972,1706145110032,-531.79,0.00051232,31]
[312684973,1706145110042,-500.0,0.00051232,31]
[312684974,1706145110056,-500.0,0.00051232,31]
[312684975,1706145110066,-500.0,0.00051232,31]
[312684976,1706145110075,-543.89,0.00051232,31]
[312684977,1706145110084,-500.0,0.00051232,31]
[312684978,1706145110095,-1845.53,0.00051232,31]
[312684979,1706145110104,-1360.18,0.00051232,31]
[312684980,1706145110114,-500.0,0.00051232,31]
[312684981,1706145110125,-738.6,0.00051232,31]
[312684982,1706145110134,-645.65,0.00051232,31]
[312684983,1706145110143,-541.32,0.00051232,31]
[312684984,1706145110153,-500.0,0.00051232,31]
[312684985,1706145110163,-500.0,0.00051232,31]
[312684986,1706145110172,-500.0,0.00051232,31]
[312684987,1706145110182,-569.14,0.00051232,31]
[312684988,1706145110191,-500.0,0.00051232,31]
[312684989,1706145110201,-500.0,0.00051232,31]
[312684990,1706145110378,-500.0,0.00051232,31]
[312684991,1706145110388,-567.82,0.00051232,31]
[312684992,1706145110397,-959.04,0.00051232,31]
[312684993,1706145110407,-500.0,0.00051232,31]
[312684994,1706145110416,-672.35,0.00051232,31]
[312684995,1706145110425,-500.0,0.00051232,31]
[312684996,1706145110434,-500.0,0.00051232,31]
[312684997,1706145110443,-3857.57,0.00051232,5]
[312684998,1706145110453,-1206.46,0.00051232,31]
[312684999,1706145110462,-608.48,0.00051232,31]
[312685000,1706145110471,-500.0,0.00051232,31]
[312685001,1706145110480,-1000.0,0.00051232,2]
[312685002,1706145110493,-500.0,0.00051232,31]
[312685003,1706145110502,-2393.75,0.00051232,31]
[312685004,1706145110511,-681.13,0.00051232,31]
[312685005,1706145110520,-683.16,0.00051232,31]
[312685006,1706145110531,-714.81,0.00051232,31]
[312685007,1706145110544,-500.0,0.00051232,31]
[312685008,1706145110553,-500.0,0.00051232,31]
[312685009,1706145110563,-500.0,0.00051232,31]
[312685010,1706145110573,-966.39,0.00051232,31]
[312685011,1706145110582,-5066.61,0.00051232,31]
[312685012,1706145110593,-585.71,0.00051232,31]
[312685013,1706145110602,-2701.77,0.00051232,31]
[312685014,1706145110611,-535.75,0.00051232,31]
[312685015,1706145110622,-500.0,0.00051232,31]
[312685016,1706145110632,-2453.54,0.00051232,31]
[312685017,1706145110642,-532.81,0.00051232,31]
[312685018,1706145110651,-2066.55,0.00051232,31]
[312685019,1706145110661,-687.75,0.00051232,31]
[312685020,1706145110670,-580.27,0.00051232,31]
[312685021,1706145110679,-5784.02,0.00051232,31]
[312685022,1706145110689,-1006.46,0.00051232,31]
[312685023,1706145110698,-500.0,0.00051232,31]
[312685024,1706145110707,-500.0,0.00051232,31]
[312685025,1706145110716,-500.0,0.00051232,31]
[312685026,1706145110726,-500.0,0.00051232,31]
[312685027,1706145110735,-537.04,0.00051232,31]
[312685028,1706145110745,-500.0,0.00051232,31]
[312685029,1706145110754,-835.92,0.00051232,31]
[312685030,1706145110763,-584.5,0.00051232,31]
[312685031,1706145110773,-742.38,0.00051232,31]
[312685032,1706145110783,-500.0,0.00051232,31]
[312685033,1706145110792,-573.12850272,0.00051232,31]
[312685034,1706145110801,-660.52,0.00051232,31]
[312685035,1706145110811,-500.0,0.00051232,31]
[312685036,1706145110820,-540.87,0.00051232,31]
[312685037,1706145110829,-1086.36,0.00051232,31]
[312685038,1706145110839,-1735.79,0.00051232,31]
[312685039,1706145110848,-650.74,0.00051232,31]
[312685040,1706145110858,-500.0,0.00051232,31]
[312685041,1706145110868,-500.0,0.00051232,31]
[312685042,1706145110877,-500.0,0.00051232,31]
[312685043,1706145110887,-677.43,0.00051232,31]
[312685044,1706145110896,-500.0,0.00051232,31]
[312685045,1706145110906,-700.44,0.00051232,31]
[312685046,1706145110915,-500.0,0.00051232,31]
[312685047,1706145110924,-1060.9,0.00051232,31]
[312685048,1706145110933,-500.55,0.00051232,31]
[312685049,1706145110943,-500.0,0.00051232,31]
[312685050,1706145110952,-500.0,0.00051232,31]
[312685051,1706145110961,-547.24,0.00051232,31]
[312685052,1706145110970,-2280.94,0.00051232,31]
[312685053,1706145110979,-552.79,0.00051232,31]
[312685054,1706145110988,-1320.68,0.00051232,31]
[312685055,1706145110998,-500.0,0.00051232,31]
[312685056,1706145111007,-500.0,0.00051232,31]
[312685057,1706145111017,-500.0,0.00051232,31]
[312685058,1706145111027,-581.01,0.00051232,31]
[312685059,1706145111036,-712.54,0.00051232,31]
[312685060,1706145111045,-500.0,0.00051232,31]
[312685061,1706145111055,-1247.14,0.00051232,31]
[312685062,1706145111066,-500.0,0.00051232,31]
[312685063,1706145111075,-500.0,0.00051232,31]
[312685064,1706145111085,-608.94,0.00051232,31]
[312685065,1706145111095,-500.0,0.00051232,31]
[312685066,1706145111105,-693.55,0.00051232,31]
[312685067,1706145111114,-500.0,0.00051232,31]
[312685068,1706145111124,-495.59624304,0.00051232,31]
[312685069,1706145111133,-500.0,0.00051232,31]
[312685070,1706145111142,-500.0,0.00051232,31]
[312685071,1706145111152,-887.42,0.00051232,31]
[312685072,1706145111161,-500.0,0.00051232,31]
[312685073,1706145111171,-633.04,0.00051232,31]
[312685074,1706145111181,-500.0,0.00051232,31]
[312685075,1706145111191,-706.67,0.00051232,31]
[312685076,1706145111200,-329.82224435,0.00051232,31]
[312685077,1706145111210,-778.86,0.00051232,31]
[312685078,1706145111219,-4966.08,0.00051232,31]
[312685079,1706145111229,-639.06,0.00051232,31]
[312685080,1706145111238,-712.26,0.00051232,31]
[312685081,1706145111247,-1315.35,0.00051232,31]
[312685082,1706145111257,-500.0,0.00051232,31]
[312685083,1706145111266,-740.74,0.00051232,31]
[312685084,1706145111276,-564.19,0.00051232,31]
[312685085,1706145111286,-645.15,0.00051232,31]
[312685086,1706145111295,-500.0,0.00051232,31]
[312685087,1706145111305,-1073.61,0.00051232,31]
[312685088,1706145111315,-765.5,0.00051232,31]
[312685089,1706145111324,-500.0,0.00051232,31]
[312685090,1706145111334,-539.53,0.00051232,31]
[312685091,1706145111345,-751.1,0.00051232,31]
[312685092,1706145111355,-553.53,0.00051232,31]
[312685093,1706145111365,-500.0,0.00051232,31]
[312685094,1706145111374,-500.0,0.00051232,31]
[312685095,1706145111383,-537.1,0.00051232,31]
[312685096,1706145111393,-608.69,0.00051232,31]
[312685097,1706145111402,-649.59,0.00051232,31]
[312685098,1706145111413,-875.62,0.00051232,31]
[312685099,1706145111422,-3061.04,0.00051232,31]
[312685100,1706145111432,-769.1,0.00051232,31]
[312685101,1706145111441,-500.0,0.00051232,31]
[312685102,1706145111450,-1451.54,0.00051232,31]
[312685103,1706145111459,-500.0,0.00051232,31]
[312685104,1706145111469,-860.59,0.00051232,31]
[312685105,1706145111478,-500.0,0.00051232,31]
[312685106,1706145111487,-703.22,0.00051232,31]
[312685107,1706145111497,-992.0,0.00051232,31]
[312685108,1706145111506,-737.72,0.00051232,31]
[312685109,1706145111516,-500.0,0.00051232,31]
[312685110,1706145111525,-658.3,0.00051232,31]
[312685111,1706145111535,-500.0,0.00051232,31]
[312685112,1706145111546,-500.0,0.00051232,31]
[312685113,1706145111555,-500.0,0.00051232,31]
[312685114,1706145111564,-500.0,0.00051232,31]
[312685115,1706145111574,-500.0,0.00051232,31]
[312685116,1706145111584,-655.7,0.00051232,31]
[312685117,1706145111594,-599.29,0.00051232,31]
[312685118,1706145111604,-764.66,0.00051232,31]
[312685119,1706145111615,-500.0,0.00051232,31]
[312685120,1706145111624,-3144.18,0.00051232,31]